bitfinex/quotes_ETHUSD_20260107
["timestamp","ask_amount","ask_price","bid_price","bid_amount"]
[1767799699004,3.17007449,3154.5,3152.8,3.98696539]
[1767799699212,4.16468108,3154.4,3152.8,0.81524533]
[1767799699416,0.99447067,3154.3,3152.7,4.98031313]
[1767799699715,0.99447067,3154.3,3152.8,3.17177438]
[1767799700069,0.99447067,3154.3,3152.9,0.9884833]
[1767799700374,6.34014898,3154.5,3152.9,0.9884833]
[1767799700581,6.34014898,3154.5,3153.1,0.9884833]
[1767799701081,1.82247067,3155.0,3153.0,0.73320415]
[1767799701082,6.33934514,3154.9,3153.2,4.15986475]
[1767799701297,7.33247596,3155.6,3153.6,0.9884833]
[1767799702987,7.33247596,3155.6,3153.7,6.3417573]
[1767799703312,0.99447067,3155.4,3153.8,0.63417573]
[1767799703491,0.99447067,3155.4,3153.9,0.82]
[1767799703895,1.05013878,3155.5,3153.9,1.8084833]
[1767799704279,6.33800529,3155.6,3154.0,0.9884833]
[1767799704905,9.50704113,3155.6,3154.0,0.9884833]
[1767799705115,0.99447067,3155.6,3154.0,0.9884833]
[1767799705315,0.99447067,3155.6,3153.3,3.17121253]
[1767799705519,0.99447067,3155.6,3153.8,3.17077056]
[1767799705813,0.99447067,3155.6,3153.9,0.31707706]
[1767799706010,0.99447067,3155.6,3154.0,0.82]
[1767799706218,0.99447067,3155.6,3153.8,0.9884833]
[1767799706418,0.99447067,3155.6,3154.1,0.82]
[1767799707297,6.33813974,3155.5,3154.1,3.99044681]
[1767799707616,9.50720961,3155.5,3154.2,0.39904468]
[1767799707812,0.001,3155.3,3154.1,0.82]
[1767799709300,0.001,3155.3,3153.9,3.17067757]
[1767799709499,0.001,3155.3,3154.0,0.82]
[1767799710586,0.001,3155.3,3153.8,4.15921751]
[1767799710822,0.99547067,3155.3,3153.3,0.9884833]
[1767799711034,0.99447067,3155.0,3152.5,0.002]
[1767799711317,0.99447067,3154.6,3152.6,0.82]
[1767799711486,0.99447067,3154.6,3152.7,3.17185846]
[1767799711825,0.99447067,3154.6,3152.8,0.9884833]
[1767799712891,0.99447067,3154.6,3152.6,3.17194732]
[1767799713186,0.97964333,3154.4,3152.7,1.13739473]
[1767799713521,0.97964333,3154.2,3152.7,1.13739473]
[1767799713828,0.97964333,3154.2,3152.7,0.82]
[1767799714521,0.97964333,3154.2,3152.7,3.9918304]
[1767799714727,3.17022022,3154.4,3152.8,0.96443244]
[1767799715027,6.33944139,3154.4,3153.0,0.96443244]
[1767799715220,6.33544519,3154.4,3153.0,0.96443244]
[1767799715423,6.32396319,3154.6,3153.1,4.13591447]
[1767799715729,0.97964333,3154.5,3153.2,1.23359145]
[1767799715904,0.97964333,3154.4,3152.8,0.82]
[1767799717502,0.97964333,3154.2,3152.5,0.002]
[1767799717813,0.97964333,3154.2,3152.6,4.02363278]
[1767799717998,3.16857305,3155.0,3152.8,9.51533151]
[1767799718338,6.33820781,3155.0,3153.3,0.96443244]
[1767799718637,3.16946902,3155.2,3153.5,0.96443244]
[1767799718844,3.16946902,3155.2,3153.7,0.96443244]
[1767799719140,6.33893804,3155.2,3153.7,0.96443244]
[1767799719344,0.001,3155.3,3153.7,0.96443244]
[1767799719551,0.001,3155.3,3153.9,0.96443244]
[1767799719703,3.16906987,3155.5,3153.8,9.5123343]
[1767799719704,3.16207747,3155.5,3154.4,0.96443244]
[1767799719904,3.16207747,3155.5,3154.4,1.78443244]
[1767799720138,6.33114734,3155.5,3154.5,0.17844324]
[1767799720438,6.33114734,3155.5,3154.4,0.82]
[1767799721115,4.1484418,3155.8,3154.2,3.17032831]
[1767799721317,4.1484418,3155.8,3154.5,0.82]
[1767799721948,3.1686682,3155.9,3154.5,1.78443244]
[1767799722240,6.3373364,3155.9,3154.6,1.45989256]
[1767799722801,6.3373364,3155.9,3154.6,0.49546012]
[1767799723018,10.48625042,3155.7,3154.6,0.49546012]
[1767799723230,10.48625042,3155.7,3154.5,0.82]
[1767799723634,10.48625042,3155.7,3154.4,0.82]
[1767799724209,0.97964333,3155.6,3153.7,0.96443244]
[1767799724423,0.97964333,3155.6,3154.1,3.17046302]
[1767799725030,0.97964333,3155.4,3154.2,0.82]
[1767799725224,0.97964333,3155.4,3153.6,0.17844324]
[1767799725429,0.97964333,3155.4,3153.6,0.82]
[1767799725828,0.97964333,3155.4,3152.9,0.96443244]
[1767799726028,0.97964333,3155.4,3153.3,0.82]
[1767799726237,3.341,3155.5,3153.4,0.96443244]
[1767799726442,8.89996316,3159.8,3157.8,0.96443244]
[1767799726642,6.29200149,3160.4,3159.1,0.18237984]
[1767799726841,4.14289895,3161.3,3159.8,3.16861728]
[1767799727025,0.41492024,3161.2,3159.8,0.82]
[1767799727241,0.97964333,3161.8,3159.9,5.7867032]
[1767799727555,0.97964333,3161.8,3159.9,2.61808592]
[1767799727740,0.97964333,3161.8,3159.8,10.31427178]
[1767799727741,0.97964333,3161.8,3159.8,7.14951452]
[1767799727943,0.97964333,3161.8,3159.8,10.31427178]
[1767799728140,0.97964333,3161.8,3159.9,0.25952256]
[1767799728343,0.828,3162.7,3160.0,1.05737943]
[1767799728344,0.98594682,3161.4,3160.0,1.05737943]
[1767799728655,0.98594682,3161.4,3160.1,0.82]
[1767799728821,0.97964333,3161.4,3159.8,3.16475726]
[1767799729016,0.97964333,3161.3,3159.5,3.16505776]
[1767799729319,0.97964333,3161.3,3159.5,9.49517328]
[1767799729522,0.97964333,3161.3,3159.5,6.33011552]
[1767799729826,0.97964333,3161.0,3159.1,0.18237984]
[1767799730322,0.97964333,3161.0,3159.2,3.16533782]
[1767799730524,0.97964333,3161.0,3159.2,0.819]
[1767799730748,0.97964333,3161.0,3159.4,6.33026408]
[1767799730948,0.97964333,3161.0,3159.5,0.63302641]
[1767799731251,0.827,3161.3,3159.3,10.4602068]
[1767799731449,0.827,3161.3,3159.5,0.96443244]
[1767799731747,0.001,3161.1,3159.6,0.25952256]
[1767799732048,0.001,3161.1,3159.8,0.25952256]
[1767799732252,4.1420264,3162.2,3160.0,1.223955]
[1767799732461,0.41420264,3162.1,3160.2,0.25952256]
[1767799732753,0.41420264,3162.1,3160.3,0.96443244]
[1767799732949,0.827,3162.5,3160.5,0.25952256]
[1767799733170,0.827,3162.5,3160.6,9.49186863]
[1767799733352,7.30235449,3163.2,3160.8,0.96443244]
[1767799733650,3.16035648,3164.2,3161.2,0.96443244]
[1767799733851,0.97964333,3164.0,3161.4,0.96443244]
[1767799734055,0.97964333,3163.8,3161.5,0.819]
[1767799734350,0.97964333,3163.8,3161.6,0.819]
[1767799734560,0.97964333,3163.8,3160.8,0.96443244]
[1767799734727,0.97964333,3163.8,3160.9,2.042955]
[1767799734928,0.97964333,3163.8,3161.5,0.25952256]
[1767799735153,3.16085595,3163.7,3161.8,6.32551078]
[1767799735354,3.16085595,3163.7,3161.8,10.45269861]
[1767799735523,6.3217119,3163.7,3161.8,7.28994322]
[1767799735853,0.97964333,3163.5,3161.7,3.16283751]
[1767799736024,0.18066433,3163.4,3161.7,3.16283751]
[1767799736349,0.18066433,3163.4,3161.8,0.819]
[1767799736649,0.18066433,3163.4,3161.9,0.819]
[1767799737247,9.48166875,3164.0,3162.0,3.16255534]
[1767799737552,0.97964333,3163.9,3161.1,0.96443244]
[1767799737750,0.97964333,3163.9,3161.5,3.16296968]
[1767799737957,0.97964333,3163.9,3161.2,1.07852256]
[1767799738254,0.97964333,3163.7,3160.5,0.96443244]
[1767799738552,0.97964333,3163.7,3160.9,4.12801399]
[1767799738738,0.97964333,3163.7,3161.4,3.16312609]
[1767799738940,0.97964333,3163.7,3161.5,0.818]
[1767799739144,9.48346713,3163.4,3161.5,3.9810276]
[1767799739340,13.62426617,3163.4,3161.5,0.818]
[1767799739553,7.30195475,3163.4,3161.5,3.16304828]
[1767799739753,0.97964333,3163.3,3161.2,3.98132744]
[1767799740065,0.97964333,3163.3,3161.5,3.16305058]
[1767799740265,0.73019548,3163.2,3161.6,1.13430506]
[1767799740562,0.97964333,3163.1,3161.1,0.03163455]
[1767799740734,0.73019548,3163.2,3160.6,3.1638591]
[1767799740735,1.04980602,3162.9,3160.6,3.1638591]
[1767799740933,1.04980602,3162.9,3160.5,0.96443244]
[1767799740934,1.04980602,3162.9,3160.1,0.2042955]
[1767799741133,1.04980602,3162.9,3160.5,3.16402086]
[1767799741369,0.826,3163.0,3160.5,0.818]
[1767799741370,1.04980602,3162.7,3160.5,0.818]
[1767799741568,1.04980602,3162.7,3160.6,0.03163956]
[1767799742135,1.04980602,3162.7,3160.6,1.1567324]
[1767799742842,6.3235108,3162.8,3160.6,1.1567324]
[1767799743221,0.63235108,3162.7,3160.8,1.12509284]
[1767799743334,6.3239107,3162.6,3160.9,6.35894839]
[1767799743539,9.48586605,3162.6,3161.0,0.818]
[1767799743736,1.01182171,3162.5,3161.1,0.39816559]
[1767799743960,1.01182171,3162.5,3161.1,0.41491638]
[1767799744674,3.16195535,3162.6,3161.2,1.15672639]
[1767799744878,3.15872142,3165.9,3164.3,0.01662331]
[1767799745037,9.5e-07,3165.1,3164.4,0.818]
[1767799745241,0.31592944,3165.1,3164.3,0.01662331]
[1767799745469,9.5e-07,3165.1,3164.3,6.33713458]
[1767799745968,6.15808224,3166.1,3164.3,6.33713458]
[1767799746470,2.99961191,3166.1,3164.4,0.818]
[1767799746637,2.99961191,3166.1,3164.5,0.818]
[1767799746638,6.15808224,3166.1,3164.5,0.818]
[1767799746834,1.86665436,3166.0,3164.3,0.01662331]
[1767799747053,1.11832069,3165.9,3164.3,0.01662331]
[1767799747244,6.31751846,3165.8,3164.3,6.33709371]
[1767799747445,6.31751846,3165.8,3164.3,3.1768371]
[1767799747772,4.27699177,3165.9,3164.3,6.33709371]
[1767799747974,3.15867108,3165.9,3164.3,6.33709371]
[1767799748282,9.47448204,3166.4,3164.3,6.33709371]
[1767799749078,12.63264272,3166.4,3164.4,0.818]
[1767799749245,12.63264272,3166.4,3164.5,3.16005688]
[1767799749440,9.47448204,3166.4,3164.5,3.16005688]
[1767799749653,1.0300482,3166.3,3164.5,7.03560316]
[1767799749846,1.0300482,3166.3,3164.6,0.818]
[1767799750280,1.0300482,3166.3,3164.7,0.818]
[1767799750647,1.0300482,3166.3,3164.4,10.60552503]
[1767799750960,1.0300482,3166.3,3164.5,0.25952256]
[1767799751280,1.0300482,3166.3,3164.8,6.31951466]
[1767799751576,7.34665304,3166.3,3164.9,0.74446075]
[1767799752072,4.18835062,3166.3,3165.0,0.818]
[1767799752281,1.0300482,3166.3,3165.0,0.818]
[1767799752477,3.15827228,3166.3,3165.0,0.818]
[1767799752789,6.31532648,3166.9,3165.1,1.94309284]
[1767799753279,9.4729909,3166.9,3165.0,1.1]
[1767799753485,9.4729909,3166.9,3165.1,0.818]
[1767799753847,12.63065532,3166.9,3165.1,0.818]
[1767799754074,1.34566553,3166.8,3165.0,1.917]
[1767799754246,1.04065436,3166.7,3165.0,1.1]
[1767799754448,1.04065436,3166.7,3164.5,3.16002728]
[1767799754675,1.04065436,3166.7,3164.6,0.817]
[1767799755209,1.04065436,3166.7,3164.0,1.12509284]
[1767799755491,10.51483721,3166.5,3164.3,1.12509284]
[1767799755645,0.825,3166.4,3164.3,1.13899031]
[1767799756051,1.04065436,3166.3,3164.4,0.817]
[1767799756391,1.04065436,3166.3,3164.3,0.817]
[1767799756580,1.2272198,3166.2,3164.3,0.817]
[1767799756783,1.2272198,3166.2,3164.6,0.002]
[1767799757449,1.04065436,3166.0,3164.6,0.002]
[1767799759451,1.04065436,3165.8,3164.6,0.002]
[1767799759652,2.96589357,3165.7,3164.6,0.002]
[1767799761057,2.96589357,3165.7,3163.7,0.03160855]
[1767799761557,12.6362344,3165.5,3164.0,1.1]
[1767799762189,1.04065436,3165.4,3163.1,1.12509284]
[1767799762352,1.04065436,3165.2,3162.6,1.12509284]
[1767799762551,1.04065436,3165.0,3162.6,1.12509284]
[1767799762757,1.04065436,3165.0,3162.8,3.1617513]
[1767799762958,1.04065436,3165.0,3163.0,0.03361555]
[1767799763357,1.04065436,3165.0,3163.0,0.002]
[1767799763568,1.04065436,3164.8,3163.0,0.002]
[1767799763855,1.28680465,3164.7,3163.0,1.12709284]
[1767799764072,0.825,3164.6,3163.0,1.12709284]
[1767799764295,1.86565436,3164.6,3163.0,0.002]
[1767799765180,1.04065436,3164.5,3163.0,0.002]
[1767799765559,6.32031348,3164.4,3163.0,0.002]
[1767799765756,0.73609678,3164.3,3163.0,0.03361555]
[1767799766091,0.73609678,3164.3,3163.0,0.002]
[1767799766594,1.04065436,3164.2,3163.0,0.002]
[1767799766778,1.04065436,3164.0,3163.0,0.002]
[1767799766982,1.04065436,3164.0,3162.1,0.03162455]
[1767799767193,0.825,3164.1,3161.5,1.94209284]
[1767799767194,1.2272198,3163.9,3161.5,1.94209284]
[1767799767497,1.2272198,3163.9,3161.8,3.16271241]
[1767799767664,12.6430242,3163.8,3161.7,3.16284022]
[1767799767865,13.68367856,3163.8,3161.7,3.16284022]
[1767799768295,1.04065436,3163.7,3161.6,1.12509284]
[1767799768497,1.04065436,3163.5,3161.6,1.12509284]
[1767799768680,1.86565436,3163.4,3161.3,3.98022431]
[1767799768993,1.04065436,3163.3,3161.4,0.817]
[1767799769195,1.04065436,3163.3,3161.6,3.16293421]
[1767799769560,1.04065436,3163.3,3161.4,0.817]
[1767799769769,9.48436659,3163.1,3161.5,0.42964923]
[1767799769962,3.16145553,3163.1,3163.0,0.002]
[1767799770160,6.32291106,3163.1,3161.6,1.12509284]
[1767799770360,6.32291106,3163.1,3161.8,1.12509284]
[1767799770859,1.04065436,3163.0,3161.7,0.002]
[1767799771058,2.07158386,3163.0,3161.7,0.002]
[1767799771256,1.0309295,3163.0,3161.7,0.002]
[1767799771868,3.16165544,3162.9,3161.7,0.002]
[1767799772071,9.48496632,3162.9,3161.7,0.002]
[1767799772599,6.32331088,3162.9,3161.7,0.002]
[1767799772761,9.48496632,3162.9,3161.7,0.002]
[1767799772959,10.43346295,3162.9,3161.7,0.002]
[1767799773592,17.89610571,3162.9,3161.7,0.002]
[1767799773767,1.13933188,3162.7,3161.7,0.002]
[1767799773968,9.48586605,3162.6,3161.7,0.002]
[1767799780768,10.62519793,3162.6,3161.7,0.002]
[1767799780971,1.07305437,3162.5,3161.7,0.002]
[1767799781921,7.46324258,3162.6,3162.0,0.002]
[1767799782269,10.62519793,3162.6,3162.0,0.002]
[1767799782465,10.62519793,3162.6,3161.7,0.002]
[1767799785407,13.78715328,3162.6,3161.7,0.002]
[1767799785608,1.13933188,3162.5,3161.0,0.03163555]
[1767799785776,2.321955,3162.5,3160.9,0.03163655]
[1767799786100,2.321955,3162.5,3161.0,3.16353827]
[1767799786409,2.321955,3162.5,3160.9,1.1713275]
[1767799786599,9.48646596,3162.4,3161.0,1.13969095]
[1767799786900,10.43496259,3162.4,3161.1,0.43349812]
[1767799787113,7.27280727,3162.4,3161.1,0.46513267]
[1767799787478,10.43496259,3162.4,3161.1,0.46513267]
[1767799787906,1.03375956,3162.3,3161.0,1.12564065]
[1767799788104,10.43496259,3162.4,3161.0,1.12564065]
[1767799789908,11.46872215,3162.4,3161.0,1.12564065]
[1767799791909,1.03375956,3162.3,3161.0,0.03163555]
[1767799792479,1.03375956,3162.2,3161.0,0.03163555]
[1767799792679,0.826,3162.3,3161.0,0.03163555]
[1767799792680,1.21973552,3162.1,3161.0,0.03163555]
[1767799792881,1.21973552,3162.1,3161.0,1.12564065]
[1767799792882,3.16255534,3162.0,3161.0,1.12564065]
[1767799793610,6.32511068,3162.0,3161.0,1.12564065]
[1767799794212,3.16255534,3162.0,3161.0,1.12564065]
[1767799794416,6.32511068,3162.0,3161.0,1.12564065]
[1767799794596,3.16255534,3162.0,3161.3,0.002]
[1767799795120,0.001,3162.0,3161.3,0.002]
[1767799795990,0.001,3162.0,3161.3,1.12763765]
[1767799795991,9.5e-07,3162.0,3161.3,1.12763765]
[1767799796194,3.15529317,3162.3,3161.3,1.12763765]
[1767799796413,6.29553835,3162.8,3161.3,1.12763765]
[1767799796586,10.58898498,3162.8,3161.3,1.12763765]
[1767799796782,1.03375956,3162.7,3161.3,1.12763765]
[1767799797022,10.58898498,3162.8,3161.3,1.0960051]
[1767799797023,1.03375956,3162.5,3161.3,1.0960051]
[1767799797724,1.03375956,3162.5,3161.3,0.002]
[1767799799316,9.48646596,3162.4,3161.3,0.002]
[1767799800305,10.48589448,3162.4,3161.3,0.002]
[1767799800689,1.03375956,3162.3,3161.3,0.002]
[1767799801012,1.03375956,3162.2,3161.0,0.002]
[1767799801219,1.03375956,3163.0,3161.3,1.0940051]
[1767799801393,1.03375956,3163.0,3161.5,1.0940051]
[1767799801714,1.03375956,3162.8,3161.6,0.03162955]
[1767799801918,1.03375956,3162.8,3161.6,1.14388657]
[1767799802216,1.03375956,3162.8,3161.6,0.03162955]
[1767799802413,1.03375956,3162.8,3161.4,0.709985]
[1767799802787,1.03375956,3162.8,3161.2,1.11225702]
[1767799803013,1.09079871,3162.6,3161.1,0.03163455]
[1767799803253,1.09079871,3162.3,3161.1,0.03163455]
[1767799803384,1.09079871,3162.3,3161.0,1.11425702]
[1767799803584,1.09079871,3162.3,3161.0,0.03363555]
[1767799803900,1.09079871,3162.1,3161.0,0.002]
[1767799804513,1.09079871,3161.9,3161.0,0.002]
[1767799805113,1.09079871,3161.9,3160.7,0.03163555]
[1767799805321,7.41630949,3161.8,3160.7,0.03163555]
[1767799805892,4.2535541,3161.8,3160.7,0.03163555]
[1767799806089,3.16275539,3161.8,3160.8,0.31955769]
[1767799806394,4.25599304,3161.8,3160.9,0.03163354]
[1767799807109,7.41874843,3161.8,3160.9,0.03163354]
[1767799807319,1.09323765,3161.2,3159.8,0.002]
[1767799807628,1.09323765,3160.6,3158.7,1.06635456]
[1767799807923,1.09323765,3160.4,3158.9,1.06635456]
[1767799808301,1.09323765,3160.1,3158.5,0.002]
[1767799808509,0.39762631,3160.8,3158.5,0.002]
[1767799808510,1.09323765,3159.9,3158.5,0.002]
[1767799809297,1.09323765,3159.7,3159.6,0.002]
[1767799809521,1.09323765,3159.6,3158.5,0.002]
[1767799809700,1.91923765,3159.5,3158.0,1.08016041]
[1767799810229,1.91923765,3159.5,3158.0,4.24662242]
[1767799810526,3.16435668,3160.2,3158.5,0.25952256]
[1767799810789,1.09323765,3160.0,3158.6,1.08016041]
[1767799810919,1.09323765,3159.9,3158.2,0.25952256]
[1767799811429,9.49427178,3159.8,3158.3,3.16626032]
[1767799811727,1.09323765,3159.7,3158.2,6.36432934]
[1767799811915,1.09323765,3159.7,3158.3,1.33968297]
[1767799812232,6.32731184,3160.9,3158.8,1.08016041]
[1767799812397,1.45873118,3160.8,3158.9,1.33968297]
[1767799812914,1.09323765,3160.7,3158.9,1.33968297]
[1767799813109,1.09323765,3160.6,3159.0,0.03165558]
[1767799813436,6.32811264,3160.5,3159.1,3.16545851]
[1767799813621,9.49216896,3160.5,3158.9,1.33968297]
[1767799813817,1.05854066,3160.4,3158.9,1.33968297]
[1767799814004,1.91923765,3160.3,3159.0,3.16555412]
[1767799814198,1.09323765,3160.2,3158.9,3.42517738]
[1767799814400,1.09323765,3160.2,3158.9,0.25952256]
[1767799815287,3.16398801,3160.6,3159.1,1.33968297]
[1767799815428,0.826,3160.7,3159.4,7.41047629]
[1767799815629,1.91923765,3160.7,3159.3,3.16523505]
[1767799815943,1.13110316,3160.6,3159.2,0.76707785]
[1767799816155,1.09323765,3160.4,3158.9,1.11181699]
[1767799816344,1.09323765,3160.4,3159.0,3.16552176]
[1767799816548,1.09323765,3160.2,3158.4,1.33968297]
[1767799816832,1.09323765,3160.2,3158.3,3.16620109]
[1767799817160,1.09323765,3160.0,3158.3,1.08016041]
[1767799817326,0.826,3159.9,3158.4,0.4246484]
[1767799817528,2.99976391,3159.8,3158.5,6.33211966]
[1767799817728,2.99177151,3159.8,3158.5,6.33211966]
[1767799817958,7.22494025,3159.8,3158.4,0.4246484]
[1767799818282,7.22494025,3159.8,3158.5,0.03166058]
[1767799818460,7.22494025,3159.8,3158.4,3.16612952]
[1767799818676,7.22494025,3159.8,3158.4,3.19779111]
[1767799818839,1.09323765,3159.7,3158.0,1.08016041]
[1767799819167,9.29645986,3159.8,3156.1,5.39413358]
[1767799819168,1.09323765,3159.5,3158.4,3.16616008]
[1767799819479,0.826,3159.4,3158.6,3.1659596]
[1767799819761,7.15632969,3159.4,3158.1,0.25952256]
[1767799820068,3.99115794,3159.4,3158.3,3.16619442]
[1767799820357,1.09323765,3159.3,3157.6,1.07588188]
[1767799820558,1.09323765,3159.2,3157.4,0.818]
[1767799820862,1.09323765,3159.2,3157.6,1.07588188]
[1767799821062,1.09323765,3159.2,3158.8,0.002]
[1767799821238,1.09323765,3159.2,3157.6,1.07588188]
[1767799821564,3.16545851,3159.1,3157.8,3.1666827]
[1767799821874,3.16545851,3159.1,3157.9,0.31983513]
[1767799821875,1.09323765,3159.0,3157.9,0.31983513]
[1767799822180,9.49637553,3159.1,3155.2,3.81]
[1767799822181,1.09323765,3158.8,3157.2,0.002]
[1767799822346,1.09323765,3158.8,3157.3,0.03167263]
[1767799822671,1.09323765,3158.8,3157.7,3.16683071]
[1767799822958,1.09323765,3158.8,3157.2,0.002]
[1767799823263,1.28516142,3158.8,3157.3,0.34861139]
[1767799823437,6.33171874,3158.7,3157.3,0.03167263]
[1767799823642,6.33171874,3158.7,3157.4,3.16716285]
[1767799823972,1.09323765,3158.6,3157.2,0.002]
[1767799825434,1.09323765,3158.4,3157.2,0.002]
[1767799825751,1.09323765,3158.2,3157.2,0.002]
[1767799826561,0.826,3158.2,3157.2,0.002]
[1767799828229,0.827,3158.2,3157.2,0.002]
[1767799829358,1.92023765,3158.2,3157.2,0.002]
[1767799829660,1.09323765,3158.0,3157.2,0.002]
[1767799829860,1.09323765,3158.4,3157.2,0.002]
[1767799830067,0.827,3158.3,3157.2,0.002]
[1767799830256,1.08924145,3158.8,3157.3,0.03167263]
[1767799830560,3.9928709,3158.7,3157.3,0.03167263]
[1767799830760,8.25197945,3158.7,3157.3,0.03167263]
[1767799830960,3.16533201,3159.3,3157.7,1.05400761]
[1767799831140,3.99235831,3159.2,3157.8,1.08567522]
[1767799831759,1.09323765,3159.4,3158.0,0.25952256]
[1767799831949,0.827,3159.3,3158.1,1.72290371]
[1767799832553,1.07738051,3160.3,3158.7,1.03195458]
[1767799832759,4.24166935,3160.3,3158.7,1.03195458]
[1767799832957,7.40595819,3160.3,3158.7,1.03195458]
[1767799833459,3.16428884,3160.3,3158.8,0.25952256]
[1767799833654,3.99118892,3160.4,3158.9,1.03195458]
[1767799833989,0.827,3160.4,3159.1,0.25952256]
[1767799834141,1.07738051,3161.2,3159.4,1.03195458]
[1767799834456,1.07738051,3161.2,3159.2,0.97561987]
[1767799834457,1.07738051,3161.0,3159.3,0.819]
[1767799834658,1.11524602,3160.9,3159.2,0.97561987]
[1767799834858,1.11524602,3160.9,3159.2,1.79461987]
[1767799835258,1.11524602,3160.9,3159.2,0.97561987]
[1767799835442,1.11524602,3160.9,3158.9,3.16564957]
[1767799835843,7.40509271,3160.7,3159.1,6.33091702]
[1767799837795,7.40509271,3160.7,3159.2,0.819]
[1767799837951,1.07738051,3160.6,3159.2,0.819]
[1767799838158,1.11524602,3160.6,3158.5,1.03195458]
[1767799838503,1.07738051,3160.4,3159.0,3.16554704]
[1767799838653,1.07738051,3160.4,3158.9,3.16562451]
[1767799838854,1.11524602,3160.4,3159.0,3.165493]
[1767799839455,1.07738051,3160.2,3158.9,3.16565893]
[1767799839688,1.07738051,3160.2,3159.0,0.74313925]
[1767799840761,1.07738051,3160.0,3158.9,0.03165658]
[1767799840957,6.3285131,3160.3,3158.9,0.03165658]
[1767799841158,1.07738051,3160.9,3159.1,1.03195458]
[1767799841397,1.07738051,3160.9,3159.2,1.03195458]
[1767799841398,3.16375601,3160.8,3159.2,1.03195458]
[1767799841555,4.24063936,3161.3,3159.8,0.25952256]
[1767799841760,6.3265177,3161.3,3159.9,0.819]
[1767799841978,6.3265177,3161.3,3160.0,0.18509546]
[1767799842180,1.07738051,3161.7,3160.1,1.29147714]
[1767799842463,6.3271305,3161.5,3160.1,1.29147714]
[1767799842660,3.16406525,3161.5,3160.1,1.29147714]
[1767799842860,6.3271305,3161.5,3160.1,1.29147714]
[1767799843059,6.3271305,3161.5,3160.0,0.18509546]
[1767799843060,1.07738051,3161.4,3160.0,0.18509546]
[1767799843263,1.07738051,3161.3,3159.4,6.33031588]
[1767799843490,1.07738051,3161.1,3159.3,3.16517303]
[1767799843677,1.07738051,3160.9,3159.4,0.819]
[1767799843878,0.03786551,3160.8,3159.5,1.1]
[1767799844090,1.11524602,3160.8,3159.5,1.1]
[1767799844294,1.07738051,3160.7,3159.5,1.1]
[1767799844602,0.86386551,3160.8,3159.5,1.1]
[1767799844603,1.11524602,3160.6,3159.5,1.1]
[1767799844966,1.11524602,3160.6,3158.2,4.19826771]
[1767799844967,1.07738051,3160.4,3158.2,1.03195458]
[1767799845166,1.07738051,3160.2,3158.7,3.16584803]
[1767799845393,1.07738051,3160.0,3158.8,3.16574521]
[1767799845591,3.1646571,3159.9,3158.8,3.16574521]
[1767799845803,3.20252261,3159.9,3158.7,0.63319046]
[1767799846010,1.07738051,3159.8,3158.4,0.0316616]
[1767799846308,1.07738051,3159.8,3157.8,1.03195458]
[1767799846466,1.07738051,3159.8,3157.9,3.1666185]
[1767799846667,1.07738051,3159.8,3158.0,0.819]
[1767799846891,1.07738051,3159.8,3158.1,3.16640006]
[1767799847094,1.07738051,3159.6,3158.1,0.71520421]
[1767799847297,1.07738051,3159.4,3158.0,0.819]
[1767799847473,1.07738051,3159.4,3157.5,0.002]
[1767799847672,7.40789675,3159.3,3157.6,0.85066962]
[1767799847897,7.40789675,3159.3,3157.6,0.819]
[1767799848079,1.07738051,3159.2,3157.5,3.16906254]
[1767799848283,1.07738051,3159.0,3157.6,0.31690625]
[1767799849197,1.07738051,3158.8,3157.6,0.31690625]
[1767799849573,4.24320143,3158.8,3157.6,0.31690625]
[1767799849773,1.07738051,3158.7,3157.5,0.002]
[1767799851473,1.07738051,3158.7,3156.1,3.16842714]
[1767799851474,1.07738051,3158.6,3155.7,4.20078942]
[1767799851797,16.24203704,3158.8,3155.6,0.819]
[1767799851798,1.07738051,3158.2,3155.6,0.819]
[1767799851966,6.37744998,3158.3,3155.3,3.16923685]
[1767799851967,1.07738051,3157.8,3155.3,3.16923685]
[1767799852175,1.07738051,3157.8,3155.0,0.819]
[1767799852176,1.07738051,3157.6,3155.0,0.819]
[1767799852435,10.0,3157.8,3155.0,0.819]
[1767799852436,1.07738051,3157.4,3155.0,0.819]
[1767799852578,1.07738051,3157.4,3154.9,0.819]
[1767799852777,1.07738051,3157.4,3155.4,3.16913912]
[1767799852976,1.07738051,3157.4,3155.5,3.16906759]
[1767799853207,1.07738051,3157.4,3155.3,0.01294424]
[1767799853380,1.07738051,3157.2,3154.4,3.17012266]
[1767799853583,1.07738051,3156.9,3154.9,0.4444716]
[1767799853791,1.07738051,3156.7,3155.0,0.03169572]
[1767799854110,1.26781856,3156.7,3155.0,0.03169572]
[1767799854310,0.827,3156.8,3155.0,1.0636503]
[1767799854480,1.90438051,3156.8,3155.0,1.03195458]
[1767799854811,1.07738051,3156.7,3154.7,6.33974704]
[1767799854991,1.07738051,3156.7,3154.8,0.01293774]
[1767799855689,7.41331157,3156.6,3154.9,6.33934514]
[1767799855902,1.81871167,3156.5,3155.0,0.63393451]
[1767799856211,1.07738051,3156.4,3155.0,0.63393451]
[1767799857106,1.07738051,3156.4,3154.3,0.819]
[1767799857323,1.07738051,3156.4,3154.4,0.03170174]
[1767799857478,1.07738051,3156.2,3154.4,0.03170174]
[1767799857686,1.07738051,3156.0,3153.8,1.03130189]
[1767799857879,1.07738051,3156.0,3155.3,0.002]
[1767799858317,1.07738051,3156.5,3155.3,0.002]
[1767799858715,4.24549712,3156.5,3155.3,0.002]
[1767799858883,7.41361373,3156.5,3155.3,0.002]
[1767799859188,1.07738051,3156.4,3155.3,0.002]
[1767799859600,1.07738051,3156.2,3155.3,0.002]
[1767799859988,6.33693482,3156.1,3155.3,0.002]
[1767799860309,1.07738051,3156.2,3155.3,0.002]
[1767799860710,1.07218269,3156.1,3155.3,0.002]
[1767799860911,2.12991513,3156.0,3155.3,0.002]
[1767799861912,3.16876861,3155.8,3155.3,0.002]
[1767799862117,1.03945773,3155.7,3155.3,0.002]
[1767799862284,1.03945773,3155.7,3155.0,0.002]
[1767799862611,10.33330583,3155.8,3153.8,1.00431128]
[1767799862612,1.03945773,3155.5,3153.8,1.00431128]
[1767799862815,1.03945773,3155.5,3154.1,3.17045258]
[1767799863215,3.99576861,3155.8,3154.3,1.00431128]
[1767799863509,3.99576861,3155.8,3154.6,3.169974]
[1767799863510,7.16453722,3155.8,3154.6,3.169974]
[1767799863711,7.16453722,3155.8,3154.3,4.17455338]
[1767799863916,7.16453722,3155.8,3154.5,3.17006119]
[1767799864080,7.98493672,3155.8,3154.6,0.31700612]
[1767799864583,7.98493672,3155.8,3154.6,3.16997154]